[Event "Titled Tuesday Blitz August 31 2021"]
[White "Perera Alfonso, Rene Humberto"]
[Black "Skliarov, Viktor"]
[WhiteFideId "3514722"]
[BlackFideId "14106736"]
[WhiteElo "2502"]
[BlackElo "2672"]
[Result "1-0"]
[Round "07"]
[TimeControl "180+1"]
[Date "2021.08.31"]
[WhiteClock "0:00:51"]
[BlackClock "0:00:04"]

1. e4 {[%clk 0:03:00]}  c5 {[%clk 0:02:59]} 2. Nf3 {[%clk 0:02:58]}  Nc6 {[%clk 0:02:59]} 3. d4 {[%clk 0:02:57]}  cxd4 {[%clk 0:02:59]} 4. Nxd4 {[%clk 0:02:58]}  Nf6 {[%clk 0:03:00]} 5. Nc3 {[%clk 0:02:57]}  e5 {[%clk 0:03:01]} 6. Ndb5 {[%clk 0:02:56]}  d6 {[%clk 0:03:01]} 7. Bg5 {[%clk 0:02:56]}  a6 {[%clk 0:03:01]} 8. Na3 {[%clk 0:02:55]}  b5 {[%clk 0:03:02]} 9. Bxf6 {[%clk 0:02:56]}  gxf6 {[%clk 0:03:02]} 10. Nd5 {[%clk 0:02:56]}  f5 {[%clk 0:03:03]} 11. Nxb5 {[%clk 0:02:56]}  axb5 {[%clk 0:03:02]} 12. Bxb5 {[%clk 0:02:57]}  Bd7 {[%clk 0:03:00]} 13. exf5 {[%clk 0:02:57]}  e4 {[%clk 0:03:00]} 14. O-O {[%clk 0:02:54]}  Bg7 {[%clk 0:02:57]} 15. Qh5 {[%clk 0:02:50]}  Bxb2 {[%clk 0:01:36]} 16. Rae1 {[%clk 0:02:49]}  Ne5 {[%clk 0:01:27]} 17. Bxd7+ {[%clk 0:02:48]}  Kxd7 {[%clk 0:01:26]} 18. Rxe4 {[%clk 0:02:46]}  Rxa2 {[%clk 0:01:21]} 19. f4 {[%clk 0:02:45]}  Rf8 {[%clk 0:00:44]} 20. fxe5 {[%clk 0:02:44]}  Bxe5 {[%clk 0:00:43]} 21. f6 {[%clk 0:02:26]}  Qa5 {[%clk 0:00:43]} 22. Qf5+ {[%clk 0:02:23]}  Kd8 {[%clk 0:00:39]} 23. Rxe5 {[%clk 0:01:40]}  dxe5 {[%clk 0:00:39]} 24. Qxe5 {[%clk 0:01:41]}  Qc5+ {[%clk 0:00:39]} 25. Kh1 {[%clk 0:01:41]}  Re8 {[%clk 0:00:39]} 26. Qb8+ {[%clk 0:01:40]}  Qc8 {[%clk 0:00:15]} 27. Qd6+ {[%clk 0:01:27]}  Qd7 {[%clk 0:00:15]} 28. Qb8+ {[%clk 0:01:28]}  Qc8 {[%clk 0:00:15]} 29. Qb6+ {[%clk 0:01:23]}  Kd7 {[%clk 0:00:15]} 30. Rd1 {[%clk 0:01:23]}  Qxc2 {[%clk 0:00:09]} 31. Qd4 {[%clk 0:00:51]}  Qxd1+ {[%clk 0:00:01]} 32. Qxd1 {[%clk 0:00:51]}  Rea8 {[%clk 0:00:02]} 33. Nc3+ {[%clk 0:00:51]}  Ke6 {[%clk 0:00:02]} 34. Nxa2 {[%clk 0:00:51]}  Rxa2 {[%clk 0:00:03]} 35. h3 {[%clk 0:00:52]}  Kxf6 {[%clk 0:00:04]} 36. Qd4+ {[%clk 0:00:51]}  Kg6 {[%clk 0:00:04]} 37. Qe4+ {[%clk 0:00:51]}  Kg7 {[%clk 0:00:03]} 38. Qe5+ {[%clk 0:00:52]}  Kg6 {[%clk 0:00:04]} 39. Qe4+ {[%clk 0:00:51]}  Kg7 {[%clk 0:00:04]} 40. Qg4+ {[%clk 0:00:52]}  Kf8 {[%clk 0:00:04]} 41. Kh2 {[%clk 0:00:52]}  Ra5 {[%clk 0:00:03]} 42. Qb4+ {[%clk 0:00:51]}  Kg7 {[%clk 0:00:04]} 43. Qxa5 {[%clk 0:00:51]} 1-0


[Site "https://www.chess.com"]

[Event "Titled Tuesday Blitz August 31 2021"]
[White "Postny, Evgeny"]
[Black "Hryshchenko, Kamila"]
[WhiteFideId "2804344"]
[BlackFideId "14147491"]
[WhiteElo "2521"]
[BlackElo "1936"]
[Result "1/2-1/2"]
[Round "07"]
[TimeControl "180+1"]
[Date "2021.08.31"]
[WhiteClock "0:00:02"]
[BlackClock "0:00:03"]

1. e4 {[%clk 0:02:26]}  d5 {[%clk 0:02:58]} 2. d3 {[%clk 0:02:24]}  dxe4 {[%clk 0:02:56]} 3. dxe4 {[%clk 0:02:25]}  Qxd1+ {[%clk 0:02:55]} 4. Kxd1 {[%clk 0:02:25]}  Nc6 {[%clk 0:02:55]} 5. c3 {[%clk 0:02:24]}  f5 {[%clk 0:02:51]} 6. Bd3 {[%clk 0:02:20]}  fxe4 {[%clk 0:02:40]} 7. Bxe4 {[%clk 0:02:21]}  Nf6 {[%clk 0:02:40]} 8. Bxc6+ {[%clk 0:02:20]}  bxc6 {[%clk 0:02:41]} 9. Nf3 {[%clk 0:02:16]}  Bf5 {[%clk 0:02:15]} 10. Nd4 {[%clk 0:02:16]}  O-O-O {[%clk 0:02:09]} 11. Ke1 {[%clk 0:02:13]}  Bd7 {[%clk 0:02:07]} 12. Be3 {[%clk 0:02:02]}  Ng4 {[%clk 0:02:01]} 13. Nd2 {[%clk 0:01:57]}  e5 {[%clk 0:01:55]} 14. N4b3 {[%clk 0:01:56]}  Nxe3 {[%clk 0:01:53]} 15. fxe3 {[%clk 0:01:57]}  Be7 {[%clk 0:01:47]} 16. Ne4 {[%clk 0:01:51]}  Rhf8 {[%clk 0:01:44]} 17. Rf1 {[%clk 0:01:49]}  Bf5 {[%clk 0:01:41]} 18. Nbc5 {[%clk 0:01:44]}  Rd5 {[%clk 0:01:36]} 19. b4 {[%clk 0:01:43]}  g6 {[%clk 0:01:23]} 20. h3 {[%clk 0:01:31]}  h5 {[%clk 0:01:21]} 21. Ke2 {[%clk 0:01:27]}  Rfd8 {[%clk 0:01:20]} 22. Rad1 {[%clk 0:01:24]}  h4 {[%clk 0:01:04]} 23. c4 {[%clk 0:01:21]}  Rxd1 {[%clk 0:00:57]} 24. Rxd1 {[%clk 0:01:22]}  Rxd1 {[%clk 0:00:51]} 25. Kxd1 {[%clk 0:01:23]}  Bxe4 {[%clk 0:00:18]} 26. Nxe4 {[%clk 0:01:23]}  Bxb4 {[%clk 0:00:19]} 27. Ke2 {[%clk 0:01:21]}  Be7 {[%clk 0:00:17]} 28. Kf3 {[%clk 0:01:12]}  Kb7 {[%clk 0:00:17]} 29. Nd2 {[%clk 0:01:13]}  Kb6 {[%clk 0:00:16]} 30. Nb3 {[%clk 0:01:13]}  Ba3 {[%clk 0:00:15]} 31. Ke4 {[%clk 0:01:12]}  a5 {[%clk 0:00:12]} 32. Kxe5 {[%clk 0:01:06]}  a4 {[%clk 0:00:10]} 33. Nd2 {[%clk 0:00:35]}  Kc5 {[%clk 0:00:10]} 34. Kf6 {[%clk 0:00:19]}  Bc1 {[%clk 0:00:11]} 35. Nf3 {[%clk 0:00:10]}  Kxc4 {[%clk 0:00:06]} 36. e4 {[%clk 0:00:06]}  Kd3 {[%clk 0:00:05]} 37. e5 {[%clk 0:00:05]}  Ba3 {[%clk 0:00:04]} 38. e6 {[%clk 0:00:04]}  Bd6 {[%clk 0:00:04]} 39. Nxh4 {[%clk 0:00:03]}  c5 {[%clk 0:00:04]} 40. Nxg6 {[%clk 0:00:03]}  c4 {[%clk 0:00:04]} 41. e7 {[%clk 0:00:03]}  Bxe7+ {[%clk 0:00:04]} 42. Nxe7 {[%clk 0:00:04]}  c3 {[%clk 0:00:04]} 43. Nd5 {[%clk 0:00:04]}  c5 {[%clk 0:00:02]} 44. Nxc3 {[%clk 0:00:03]}  Kxc3 {[%clk 0:00:03]} 45. h4 {[%clk 0:00:04]}  Kb2 {[%clk 0:00:03]} 46. h5 {[%clk 0:00:04]}  c4 {[%clk 0:00:03]} 47. h6 {[%clk 0:00:05]}  c3 {[%clk 0:00:03]} 48. h7 {[%clk 0:00:06]}  c2 {[%clk 0:00:04]} 49. h8=Q {[%clk 0:00:07]}  c1=Q {[%clk 0:00:04]} 50. Qg8 {[%clk 0:00:03]}  Qc3+ {[%clk 0:00:04]} 51. Kf5 {[%clk 0:00:03]}  a3 {[%clk 0:00:04]} 52. g4 {[%clk 0:00:02]}  Qd3+ {[%clk 0:00:04]} 53. Kf4 {[%clk 0:00:02]}  Qd4+ {[%clk 0:00:04]} 54. Kf3 {[%clk 0:00:02]}  Qd3+ {[%clk 0:00:04]} 55. Kf4 {[%clk 0:00:02]}  Qd4+ {[%clk 0:00:04]} 56. Kf5 {[%clk 0:00:03]}  Qc5+ {[%clk 0:00:04]} 57. Kg6 {[%clk 0:00:03]}  Qd6+ {[%clk 0:00:04]} 58. Kh5 {[%clk 0:00:03]}  Qe5+ {[%clk 0:00:04]} 59. g5 {[%clk 0:00:03]}  Qh2+ {[%clk 0:00:05]} 60. Kg6 {[%clk 0:00:03]}  Qd6+ {[%clk 0:00:05]} 61. Kh7 {[%clk 0:00:03]}  Qh2+ {[%clk 0:00:05]} 62. Kg7 {[%clk 0:00:03]}  Qc7+ {[%clk 0:00:05]} 63. Kh6 {[%clk 0:00:03]}  Qh2+ {[%clk 0:00:05]} 64. Kg6 {[%clk 0:00:02]}  Qd6+ {[%clk 0:00:05]} 65. Kf5 {[%clk 0:00:03]}  Qc5+ {[%clk 0:00:05]} 66. Kf4 {[%clk 0:00:03]}  Qd4+ {[%clk 0:00:05]} 67. Kg3 {[%clk 0:00:03]}  Qe3+ {[%clk 0:00:05]} 68. Kg4 {[%clk 0:00:03]}  Qd4+ {[%clk 0:00:05]} 69. Kh5 {[%clk 0:00:04]}  Qd1+ {[%clk 0:00:03]} 70. Kh6 {[%clk 0:00:04]}  Qh1+ {[%clk 0:00:03]} 71. Kg7 {[%clk 0:00:04]}  Qb7+ {[%clk 0:00:03]} 72. Kg6 {[%clk 0:00:02]}  Qc6+ {[%clk 0:00:03]} 73. Kh7 {[%clk 0:00:02]}  Qc7+ {[%clk 0:00:03]} 74. Kh6 {[%clk 0:00:02]}  Qh2+ {[%clk 0:00:03]} 75. Kg6 {[%clk 0:00:02]} 1/2-1/2


[Site "https://www.chess.com"]

[Event "Titled Tuesday Blitz August 31 2021"]
[White "Potapova, Margarita"]
[Black "Maksimovic, Bojan"]
[WhiteFideId "14126869"]
[BlackFideId "14408120"]
[WhiteElo "2556"]
[BlackElo "2704"]
[Result "0-1"]
[Round "07"]
[TimeControl "180+1"]
[Date "2021.08.31"]
[WhiteClock "0:00:02"]
[BlackClock "0:00:11"]

1. e4 {[%clk 0:02:59]}  c5 {[%clk 0:03:00]} 2. g3 {[%clk 0:02:57]}  d5 {[%clk 0:02:59]} 3. exd5 {[%clk 0:02:57]}  Qxd5 {[%clk 0:03:00]} 4. Nf3 {[%clk 0:02:58]}  Nc6 {[%clk 0:02:58]} 5. Bg2 {[%clk 0:02:56]}  e6 {[%clk 0:02:49]} 6. O-O {[%clk 0:02:55]}  Nh6 {[%clk 0:02:47]} 7. Re1 {[%clk 0:02:43]}  Qd8 {[%clk 0:02:46]} 8. Nc3 {[%clk 0:02:32]}  Be7 {[%clk 0:02:41]} 9. d3 {[%clk 0:02:30]}  Nf5 {[%clk 0:02:40]} 10. Ne4 {[%clk 0:02:20]}  O-O {[%clk 0:02:37]} 11. Bf4 {[%clk 0:02:12]}  f6 {[%clk 0:02:33]} 12. a3 {[%clk 0:01:56]}  e5 {[%clk 0:02:33]} 13. Bd2 {[%clk 0:01:55]}  Be6 {[%clk 0:02:32]} 14. Rb1 {[%clk 0:01:52]}  a5 {[%clk 0:02:19]} 15. a4 {[%clk 0:01:28]}  Qd7 {[%clk 0:02:17]} 16. b3 {[%clk 0:01:16]}  b6 {[%clk 0:02:17]} 17. Be3 {[%clk 0:01:13]}  Rad8 {[%clk 0:02:16]} 18. Nc3 {[%clk 0:01:12]}  Ncd4 {[%clk 0:02:07]} 19. Bxd4 {[%clk 0:01:06]}  cxd4 {[%clk 0:02:08]} 20. Nb5 {[%clk 0:01:06]}  Bb4 {[%clk 0:02:05]} 21. Nd2 {[%clk 0:01:00]}  Ne7 {[%clk 0:02:00]} 22. Rf1 {[%clk 0:00:55]}  Nd5 {[%clk 0:01:49]} 23. Nc4 {[%clk 0:00:56]}  Rb8 {[%clk 0:01:49]} 24. Qe2 {[%clk 0:00:48]}  Nc3 {[%clk 0:01:30]} 25. Nxc3 {[%clk 0:00:48]}  dxc3 {[%clk 0:01:31]} 26. Rbe1 {[%clk 0:00:45]}  Bc5 {[%clk 0:01:31]} 27. Kh1 {[%clk 0:00:45]}  Rfe8 {[%clk 0:01:17]} 28. Be4 {[%clk 0:00:44]}  Bd4 {[%clk 0:01:09]} 29. Qh5 {[%clk 0:00:41]}  g6 {[%clk 0:01:09]} 30. Qh6 {[%clk 0:00:40]}  Qg7 {[%clk 0:01:07]} 31. Qxg7+ {[%clk 0:00:25]}  Kxg7 {[%clk 0:01:07]} 32. f4 {[%clk 0:00:24]}  f5 {[%clk 0:00:52]} 33. Bc6 {[%clk 0:00:23]}  Rec8 {[%clk 0:00:52]} 34. Bg2 {[%clk 0:00:22]}  Bxc4 {[%clk 0:00:40]} 35. bxc4 {[%clk 0:00:22]}  Re8 {[%clk 0:00:26]} 36. Bc6 {[%clk 0:00:17]}  Re6 {[%clk 0:00:21]} 37. Bd5 {[%clk 0:00:16]}  Re7 {[%clk 0:00:22]} 38. fxe5 {[%clk 0:00:16]}  Rxe5 {[%clk 0:00:23]} 39. Rxe5 {[%clk 0:00:16]}  Bxe5 {[%clk 0:00:24]} 40. Re1 {[%clk 0:00:16]}  Kf6 {[%clk 0:00:24]} 41. Kg2 {[%clk 0:00:16]}  h5 {[%clk 0:00:24]} 42. Kf3 {[%clk 0:00:15]}  Rd8 {[%clk 0:00:22]} 43. Rb1 {[%clk 0:00:15]}  Bd4 {[%clk 0:00:22]} 44. Re1 {[%clk 0:00:15]}  Be5 {[%clk 0:00:19]} 45. Rb1 {[%clk 0:00:15]}  Rd6 {[%clk 0:00:20]} 46. Re1 {[%clk 0:00:15]}  Rd7 {[%clk 0:00:19]} 47. h4 {[%clk 0:00:15]}  Re7 {[%clk 0:00:18]} 48. Ra1 {[%clk 0:00:14]}  Bd4 {[%clk 0:00:18]} 49. Rc1 {[%clk 0:00:11]}  Re3+ {[%clk 0:00:18]} 50. Kg2 {[%clk 0:00:11]}  Re2+ {[%clk 0:00:19]} 51. Kh3 {[%clk 0:00:06]}  Be3 {[%clk 0:00:19]} 52. Rb1 {[%clk 0:00:06]}  Rxc2 {[%clk 0:00:19]} 53. Rb3 {[%clk 0:00:06]}  Bg1 {[%clk 0:00:16]} 54. Bg2 {[%clk 0:00:05]}  Bd4 {[%clk 0:00:14]} 55. Ra3 {[%clk 0:00:05]}  Rd2 {[%clk 0:00:12]} 56. Ra1 {[%clk 0:00:05]}  c2 {[%clk 0:00:12]} 57. Rf1 {[%clk 0:00:02]}  Rd1 {[%clk 0:00:11]} 58. Rf2 {[%clk 0:00:02]}  c1=Q {[%clk 0:00:11]} 59. g4 {[%clk 0:00:02]}  hxg4+ {[%clk 0:00:11]} 60. Kg3 {[%clk 0:00:02]}  Be5+ {[%clk 0:00:11]} 0-1


[Site "https://www.chess.com"]

[Event "Titled Tuesday Blitz August 31 2021"]
[White "Qashashvili, Alexandre"]
[Black "Milchev, Nikolay"]
[WhiteFideId "13600842"]
[BlackFideId "2906090"]
[WhiteElo "2316"]
[BlackElo "2449"]
[Result "0-1"]
[Round "07"]
[TimeControl "180+1"]
[Date "2021.08.31"]
[WhiteClock "0:00:05"]
[BlackClock "0:01:37"]

1. e4 {[%clk 0:02:13]}  e5 {[%clk 0:02:53]} 2. Nf3 {[%clk 0:02:13]}  Nc6 {[%clk 0:02:53]} 3. Nc3 {[%clk 0:02:12]}  Nf6 {[%clk 0:02:53]} 4. d4 {[%clk 0:02:10]}  exd4 {[%clk 0:02:53]} 5. Nxd4 {[%clk 0:02:10]}  Bb4 {[%clk 0:02:53]} 6. Nxc6 {[%clk 0:02:11]}  bxc6 {[%clk 0:02:54]} 7. Bd3 {[%clk 0:02:11]}  d5 {[%clk 0:02:54]} 8. exd5 {[%clk 0:02:12]}  cxd5 {[%clk 0:02:55]} 9. O-O {[%clk 0:02:12]}  O-O {[%clk 0:02:54]} 10. Bg5 {[%clk 0:02:12]}  c6 {[%clk 0:02:54]} 11. Qf3 {[%clk 0:02:09]}  Be7 {[%clk 0:02:54]} 12. h3 {[%clk 0:02:05]}  h6 {[%clk 0:02:54]} 13. Bh4 {[%clk 0:02:05]}  Rb8 {[%clk 0:02:54]} 14. b3 {[%clk 0:01:55]}  Rb4 {[%clk 0:02:53]} 15. Bg3 {[%clk 0:01:50]}  Bd6 {[%clk 0:02:48]} 16. Bxd6 {[%clk 0:01:49]}  Qxd6 {[%clk 0:02:48]} 17. Rfe1 {[%clk 0:01:43]}  Be6 {[%clk 0:02:48]} 18. Rad1 {[%clk 0:01:38]}  c5 {[%clk 0:02:45]} 19. Ne2 {[%clk 0:01:05]}  a5 {[%clk 0:02:40]} 20. a3 {[%clk 0:01:02]}  Rh4 {[%clk 0:02:39]} 21. Bf5 {[%clk 0:00:51]}  a4 {[%clk 0:02:22]} 22. Bxe6 {[%clk 0:00:48]}  fxe6 {[%clk 0:02:22]} 23. Qg3 {[%clk 0:00:48]}  Qxg3 {[%clk 0:02:20]} 24. Nxg3 {[%clk 0:00:46]}  axb3 {[%clk 0:02:17]} 25. cxb3 {[%clk 0:00:47]}  Kf7 {[%clk 0:02:15]} 26. Rc1 {[%clk 0:00:40]}  Rc8 {[%clk 0:02:12]} 27. Kf1 {[%clk 0:00:33]}  Rd4 {[%clk 0:02:11]} 28. Red1 {[%clk 0:00:32]}  Rxd1+ {[%clk 0:02:10]} 29. Rxd1 {[%clk 0:00:33]}  Rb8 {[%clk 0:02:10]} 30. Rc1 {[%clk 0:00:21]}  Rxb3 {[%clk 0:02:08]} 31. Rxc5 {[%clk 0:00:21]}  Rxa3 {[%clk 0:02:08]} 32. Rc7+ {[%clk 0:00:21]}  Kf8 {[%clk 0:02:05]} 33. Ke2 {[%clk 0:00:16]}  Rb3 {[%clk 0:01:55]} 34. f3 {[%clk 0:00:15]}  Rb2+ {[%clk 0:01:54]} 35. Kf1 {[%clk 0:00:14]}  Ne8 {[%clk 0:01:38]} 36. Rd7 {[%clk 0:00:10]}  Rc2 {[%clk 0:01:37]} 37. Nh5 {[%clk 0:00:05]}  Rc7 {[%clk 0:01:37]} 0-1


[Site "https://www.chess.com"]

[Event "Titled Tuesday Blitz August 31 2021"]
[White "Quirke, Jeffrey"]
[Black "Alavkin, Arseny"]
[WhiteFideId "2013029"]
[BlackFideId "4120612"]
[WhiteElo "2320"]
[BlackElo "2391"]
[Result "1/2-1/2"]
[Round "07"]
[TimeControl "180+1"]
[Date "2021.08.31"]
[WhiteClock "0:00:03"]
[BlackClock "0:02:10"]

1. d4 {[%clk 0:03:00]}  Nf6 {[%clk 0:02:59]} 2. c4 {[%clk 0:03:00]}  g6 {[%clk 0:02:59]} 3. Nc3 {[%clk 0:03:01]}  Bg7 {[%clk 0:02:59]} 4. e4 {[%clk 0:03:00]}  d6 {[%clk 0:03:00]} 5. Be2 {[%clk 0:03:00]}  O-O {[%clk 0:03:00]} 6. Be3 {[%clk 0:03:00]}  Na6 {[%clk 0:03:00]} 7. Nf3 {[%clk 0:03:00]}  e5 {[%clk 0:03:00]} 8. O-O {[%clk 0:03:00]}  Ng4 {[%clk 0:02:57]} 9. Bg5 {[%clk 0:03:00]}  Qe8 {[%clk 0:02:58]} 10. dxe5 {[%clk 0:02:58]}  dxe5 {[%clk 0:02:57]} 11. Qc1 {[%clk 0:02:57]}  h6 {[%clk 0:02:55]} 12. Bd2 {[%clk 0:02:56]}  Kh7 {[%clk 0:02:55]} 13. Rd1 {[%clk 0:02:53]}  c6 {[%clk 0:02:55]} 14. h3 {[%clk 0:02:52]}  Nf6 {[%clk 0:02:55]} 15. Be3 {[%clk 0:02:52]}  Nc7 {[%clk 0:02:52]} 16. Rd6 {[%clk 0:02:51]}  Be6 {[%clk 0:02:50]} 17. Qc2 {[%clk 0:02:39]}  Nd7 {[%clk 0:02:49]} 18. Rad1 {[%clk 0:02:33]}  Qe7 {[%clk 0:02:50]} 19. c5 {[%clk 0:02:14]}  Rfd8 {[%clk 0:02:43]} 20. b4 {[%clk 0:02:08]}  Ne8 {[%clk 0:02:41]} 21. R6d2 {[%clk 0:02:01]}  Nf8 {[%clk 0:02:41]} 22. Rxd8 {[%clk 0:01:51]}  Rxd8 {[%clk 0:02:42]} 23. Rxd8 {[%clk 0:01:51]}  Qxd8 {[%clk 0:02:37]} 24. a4 {[%clk 0:01:45]}  a6 {[%clk 0:02:37]} 25. Qd3 {[%clk 0:01:31]}  Qxd3 {[%clk 0:02:36]} 26. Bxd3 {[%clk 0:01:31]}  Nc7 {[%clk 0:02:37]} 27. Nd2 {[%clk 0:01:26]}  Kg8 {[%clk 0:02:34]} 28. Bc4 {[%clk 0:01:11]}  Nd7 {[%clk 0:02:29]} 29. Bxe6 {[%clk 0:01:09]}  Nxe6 {[%clk 0:02:30]} 30. Nc4 {[%clk 0:01:10]}  Nd8 {[%clk 0:02:31]} 31. Na5 {[%clk 0:01:04]}  Kf8 {[%clk 0:02:31]} 32. b5 {[%clk 0:01:04]}  axb5 {[%clk 0:02:30]} 33. axb5 {[%clk 0:01:05]}  Ke7 {[%clk 0:02:29]} 34. b6 {[%clk 0:01:03]}  Ke8 {[%clk 0:02:28]} 35. Na4 {[%clk 0:00:58]}  Nf8 {[%clk 0:02:25]} 36. Kf1 {[%clk 0:00:52]}  Kd7 {[%clk 0:02:25]} 37. Ke2 {[%clk 0:00:52]}  Kc8 {[%clk 0:02:26]} 38. Kd3 {[%clk 0:00:52]}  Nde6 {[%clk 0:02:26]} 39. g3 {[%clk 0:00:50]}  Nd7 {[%clk 0:02:27]} 40. Kc4 {[%clk 0:00:47]}  f5 {[%clk 0:02:27]} 41. exf5 {[%clk 0:00:22]}  gxf5 {[%clk 0:02:28]} 42. f4 {[%clk 0:00:20]}  exf4 {[%clk 0:02:26]} 43. Bxf4 {[%clk 0:00:17]}  Nxf4 {[%clk 0:02:23]} 44. gxf4 {[%clk 0:00:18]}  Nf6 {[%clk 0:02:21]} 45. Nc3 {[%clk 0:00:13]}  Nh5 {[%clk 0:02:21]} 46. Ne2 {[%clk 0:00:11]}  Nf6 {[%clk 0:02:08]} 47. Nb3 {[%clk 0:00:11]}  Nd5 {[%clk 0:02:08]} 48. Nbd4 {[%clk 0:00:10]}  Bxd4 {[%clk 0:02:07]} 49. Kxd4 {[%clk 0:00:10]}  Kd7 {[%clk 0:02:08]} 50. Ke5 {[%clk 0:00:10]}  Nb4 {[%clk 0:02:08]} 51. Kxf5 {[%clk 0:00:09]}  Nd3 {[%clk 0:02:08]} 52. Kg6 {[%clk 0:00:06]}  Nxc5 {[%clk 0:02:09]} 53. Kxh6 {[%clk 0:00:05]}  Na4 {[%clk 0:02:08]} 54. Kg7 {[%clk 0:00:05]}  Nxb6 {[%clk 0:02:09]} 55. h4 {[%clk 0:00:06]}  Nd5 {[%clk 0:02:06]} 56. h5 {[%clk 0:00:06]}  Ke7 {[%clk 0:02:06]} 57. h6 {[%clk 0:00:07]}  Nf6 {[%clk 0:02:07]} 58. h7 {[%clk 0:00:06]}  Nxh7 {[%clk 0:02:07]} 59. Kxh7 {[%clk 0:00:07]}  Kf6 {[%clk 0:02:08]} 60. Kh6 {[%clk 0:00:06]}  Kf5 {[%clk 0:02:09]} 61. Kg7 {[%clk 0:00:04]}  c5 {[%clk 0:02:09]} 62. Kf7 {[%clk 0:00:05]}  c4 {[%clk 0:02:09]} 63. Ke7 {[%clk 0:00:05]}  b5 {[%clk 0:02:09]} 64. Kd6 {[%clk 0:00:06]}  c3 {[%clk 0:02:08]} 65. Nxc3 {[%clk 0:00:04]}  b4 {[%clk 0:02:06]} 66. Nd5 {[%clk 0:00:04]}  b3 {[%clk 0:02:07]} 67. Nc3 {[%clk 0:00:04]}  b2 {[%clk 0:02:08]} 68. Kc5 {[%clk 0:00:04]}  Kxf4 {[%clk 0:02:09]} 69. Kb4 {[%clk 0:00:03]}  Ke3 {[%clk 0:02:10]} 70. Kb3 {[%clk 0:00:03]}  b1=Q+ {[%clk 0:02:10]} 71. Nxb1 {[%clk 0:00:03]} 1/2-1/2


[Site "https://www.chess.com"]

[Event "Titled Tuesday Blitz August 31 2021"]
[White "Rodriguez Hernandez, Luis Daniel"]
[Black "Blomqvist, Erik"]
[WhiteFideId "3506770"]
[BlackFideId "1709437"]
[WhiteElo "2721"]
[BlackElo "2572"]
[Result "0-1"]
[Round "07"]
[TimeControl "180+1"]
[Date "2021.08.31"]
[WhiteClock "0:00:05"]
[BlackClock "0:00:05"]

1. e4 {[%clk 0:03:00]}  c5 {[%clk 0:02:58]} 2. c3 {[%clk 0:03:01]}  Nf6 {[%clk 0:02:58]} 3. e5 {[%clk 0:03:01]}  Nd5 {[%clk 0:02:58]} 4. d4 {[%clk 0:03:02]}  cxd4 {[%clk 0:02:58]} 5. Nf3 {[%clk 0:03:03]}  d6 {[%clk 0:02:58]} 6. Bc4 {[%clk 0:03:04]}  Nb6 {[%clk 0:02:55]} 7. Bb5+ {[%clk 0:03:04]}  Bd7 {[%clk 0:02:53]} 8. Bxd7+ {[%clk 0:03:04]}  Qxd7 {[%clk 0:02:51]} 9. cxd4 {[%clk 0:03:04]}  Nc6 {[%clk 0:02:47]} 10. Qe2 {[%clk 0:03:05]}  e6 {[%clk 0:02:45]} 11. O-O {[%clk 0:03:04]}  Be7 {[%clk 0:02:40]} 12. Nc3 {[%clk 0:03:04]}  O-O {[%clk 0:02:38]} 13. Re1 {[%clk 0:02:23]}  Rfd8 {[%clk 0:02:22]} 14. Bg5 {[%clk 0:02:18]}  Nxd4 {[%clk 0:01:53]} 15. Nxd4 {[%clk 0:02:19]}  Bxg5 {[%clk 0:01:53]} 16. Ne4 {[%clk 0:02:12]}  dxe5 {[%clk 0:01:36]} 17. Nxe6 {[%clk 0:01:46]}  Qxe6 {[%clk 0:01:36]} 18. Nxg5 {[%clk 0:01:46]}  Qf5 {[%clk 0:01:32]} 19. Nf3 {[%clk 0:01:32]}  f6 {[%clk 0:01:25]} 20. a4 {[%clk 0:01:22]}  Qd3 {[%clk 0:01:16]} 21. Qe4 {[%clk 0:00:54]}  Qxe4 {[%clk 0:01:11]} 22. Rxe4 {[%clk 0:00:55]}  a5 {[%clk 0:01:05]} 23. g3 {[%clk 0:00:50]}  Rd3 {[%clk 0:01:00]} 24. Nh4 {[%clk 0:00:43]}  Rc8 {[%clk 0:00:50]} 25. b4 {[%clk 0:00:41]}  Rc4 {[%clk 0:00:46]} 26. Rxc4 {[%clk 0:00:39]}  Nxc4 {[%clk 0:00:47]} 27. Rc1 {[%clk 0:00:36]}  Nd6 {[%clk 0:00:26]} 28. bxa5 {[%clk 0:00:37]}  Rd5 {[%clk 0:00:25]} 29. Rc7 {[%clk 0:00:23]}  Rxa5 {[%clk 0:00:25]} 30. Rd7 {[%clk 0:00:23]}  Ra6 {[%clk 0:00:25]} 31. Rd8+ {[%clk 0:00:17]}  Kf7 {[%clk 0:00:25]} 32. Rd7+ {[%clk 0:00:18]}  Kf8 {[%clk 0:00:24]} 33. Ng2 {[%clk 0:00:13]}  Nf5 {[%clk 0:00:15]} 34. g4 {[%clk 0:00:14]}  Nd4 {[%clk 0:00:14]} 35. Ne3 {[%clk 0:00:13]}  Rxa4 {[%clk 0:00:10]} 36. Rxb7 {[%clk 0:00:13]}  Ne6 {[%clk 0:00:09]} 37. h4 {[%clk 0:00:08]}  h5 {[%clk 0:00:07]} 38. gxh5 {[%clk 0:00:05]}  Rxh4 {[%clk 0:00:08]} 39. Rb8+ {[%clk 0:00:04]}  Kf7 {[%clk 0:00:08]} 40. Rb7+ {[%clk 0:00:05]}  Kg8 {[%clk 0:00:08]} 41. Re7 {[%clk 0:00:05]}  Nf4 {[%clk 0:00:02]} 42. Rxg7+ {[%clk 0:00:05]}  Kxg7 {[%clk 0:00:03]} 43. Nf5+ {[%clk 0:00:05]}  Kh7 {[%clk 0:00:04]} 44. Nxh4 {[%clk 0:00:06]}  Nxh5 {[%clk 0:00:04]} 45. Nf3 {[%clk 0:00:06]}  Kg6 {[%clk 0:00:05]} 46. Kg2 {[%clk 0:00:05]}  Kf5 {[%clk 0:00:05]} 47. Nh4+ {[%clk 0:00:05]}  Kg4 {[%clk 0:00:05]} 0-1


[Site "https://www.chess.com"]

[Event "Titled Tuesday Blitz August 31 2021"]
[White "Sadhwani, Raunak"]
[Black "Chos, Alexey"]
[WhiteFideId "35093487"]
[BlackFideId "14117762"]
[WhiteElo "2514"]
[BlackElo "2234"]
[Result "1-0"]
[Round "07"]
[TimeControl "180+1"]
[Date "2021.08.31"]
[WhiteClock "0:02:21"]
[BlackClock "0:00:37"]

1. b3 {[%clk 0:03:00]}  d5 {[%clk 0:02:59]} 2. Bb2 {[%clk 0:03:01]}  Nf6 {[%clk 0:02:59]} 3. Nf3 {[%clk 0:03:02]}  c6 {[%clk 0:02:59]} 4. g3 {[%clk 0:03:02]}  Nbd7 {[%clk 0:03:00]} 5. Bg2 {[%clk 0:03:03]}  Qc7 {[%clk 0:03:00]} 6. O-O {[%clk 0:03:04]}  e5 {[%clk 0:03:00]} 7. c4 {[%clk 0:03:04]}  d4 {[%clk 0:02:58]} 8. e3 {[%clk 0:03:04]}  dxe3 {[%clk 0:02:53]} 9. fxe3 {[%clk 0:03:05]}  Be7 {[%clk 0:02:53]} 10. d4 {[%clk 0:03:05]}  exd4 {[%clk 0:02:52]} 11. exd4 {[%clk 0:03:06]}  O-O {[%clk 0:02:53]} 12. Re1 {[%clk 0:03:06]}  Bb4 {[%clk 0:02:47]} 13. Nc3 {[%clk 0:03:06]}  Rd8 {[%clk 0:02:45]} 14. a3 {[%clk 0:03:06]}  Bf8 {[%clk 0:02:45]} 15. Qc2 {[%clk 0:03:06]}  a6 {[%clk 0:02:44]} 16. Rf1 {[%clk 0:03:01]}  h6 {[%clk 0:02:43]} 17. Rae1 {[%clk 0:03:01]}  Nb6 {[%clk 0:02:42]} 18. Ne5 {[%clk 0:03:00]}  Be6 {[%clk 0:02:21]} 19. Ne4 {[%clk 0:02:54]}  Nxe4 {[%clk 0:02:15]} 20. Bxe4 {[%clk 0:02:54]}  Bd6 {[%clk 0:02:10]} 21. c5 {[%clk 0:02:43]}  Bxe5 {[%clk 0:02:08]} 22. cxb6 {[%clk 0:02:43]}  Qxb6 {[%clk 0:02:07]} 23. Bh7+ {[%clk 0:02:43]}  Kh8 {[%clk 0:02:06]} 24. Rxe5 {[%clk 0:02:44]}  Rxd4 {[%clk 0:02:05]} 25. Qf2 {[%clk 0:02:42]}  c5 {[%clk 0:01:51]} 26. Bxd4 {[%clk 0:02:41]}  cxd4 {[%clk 0:01:52]} 27. Bf5 {[%clk 0:02:29]}  Bxb3 {[%clk 0:01:40]} 28. Rb1 {[%clk 0:02:29]}  a5 {[%clk 0:01:37]} 29. a4 {[%clk 0:02:25]}  Qd6 {[%clk 0:01:22]} 30. Re4 {[%clk 0:02:25]}  Bc4 {[%clk 0:00:41]} 31. Rxd4 {[%clk 0:02:24]}  Qc5 {[%clk 0:00:37]} 32. Rd8+ {[%clk 0:02:21]} 1-0


[Site "https://www.chess.com"]